fUST/lending_fUST_20260607
["ID","MTS","AMOUNT","RATE_DAILY","PERIOD"]
[424377021,1780821038000,-500.0,0.00019178,2]
[424377017,1780821038000,-500.0,0.00019178,2]
[424377018,1780821038000,-500.0,0.00019178,2]
[424377011,1780821038000,-598.34,0.00019178,2]
[424377023,1780821038000,-500.0,0.00019178,2]
[424376978,1780821038000,-500.0,0.00019178,2]
[424377016,1780821038000,-500.0,0.00019178,2]
[424377001,1780821038000,-1897.85,0.00019178,2]
[424377019,1780821038000,-994.18,0.00019178,2]
[424377008,1780821038000,-572.78,0.00019178,2]
[424376998,1780821038000,-500.0,0.00019178,2]
[424376982,1780821038000,-632.93,0.00019178,2]
[424376985,1780821038000,-511.91,0.00019178,2]
[424376984,1780821038000,-649.96,0.00019178,2]
[424376983,1780821038000,-1426.77,0.00019178,2]
[424376987,1780821038000,-403.81659135,0.00019178,2]
[424376989,1780821038000,-1826.82,0.00019178,2]
[424376997,1780821038000,-500.0,0.00019178,2]
[424376992,1780821038000,-500.0,0.00019178,2]
[424376986,1780821038000,-500.0,0.00019178,2]
[424376993,1780821038000,-500.0,0.00019178,2]
[424376991,1780821038000,-500.0,0.00019178,2]
[424376990,1780821038000,-689.98,0.00019178,2]
[424376994,1780821038000,-500.0,0.00019178,2]
[424376995,1780821038000,-500.0,0.00019178,2]
[424376996,1780821038000,-549.07,0.00019178,2]
[424376999,1780821038000,-500.0,0.00019178,2]
[424377007,1780821038000,-500.0,0.00019178,2]
[424376988,1780821038000,-500.0,0.00019178,2]
[424377009,1780821038000,-500.0,0.00019178,2]
[424377067,1780821039000,-2010.25,0.00019178,2]
[424377068,1780821039000,-824.18,0.00019178,2]
[424377066,1780821039000,-500.0,0.00019178,2]
[424377060,1780821039000,-1446.0,0.00019178,2]
[424377071,1780821039000,-500.0,0.00019178,2]
[424377055,1780821039000,-500.0,0.00019178,2]
[424377056,1780821039000,-500.0,0.00019178,2]
[424377053,1780821039000,-500.0,0.00019178,2]
[424377057,1780821039000,-500.0,0.00019178,2]
[424377070,1780821039000,-500.0,0.00019178,2]
[424377058,1780821039000,-1108.55,0.00019178,2]
[424377061,1780821039000,-500.0,0.00019178,2]
[424377065,1780821039000,-384.872826,0.00019178,2]
[424377080,1780821039000,-1467.17,0.00019178,2]
[424377063,1780821039000,-525.11,0.00019178,2]
[424377064,1780821039000,-1149.64,0.00019178,2]
[424377062,1780821039000,-860.68,0.00019178,2]
[424377072,1780821039000,-500.0,0.00019178,2]
[424377073,1780821039000,-500.0,0.00019178,2]
[424377078,1780821039000,-500.0,0.00019178,2]
[424377079,1780821039000,-1314.11,0.00019178,2]
[424377082,1780821039000,-806.57,0.00019178,2]
[424377074,1780821039000,-500.0,0.00019178,2]
[424377076,1780821039000,-500.0,0.00019178,2]
[424377075,1780821039000,-714.61,0.00019178,2]
[424377077,1780821039000,-500.0,0.00019178,2]
[424377052,1780821039000,-500.0,0.00019178,2]
[424377069,1780821039000,-500.0,0.00019178,2]
[424377054,1780821039000,-885.58,0.00019178,2]
[424377026,1780821039000,-822.61,0.00019178,2]
[424377051,1780821039000,-500.0,0.00019178,2]
[424377032,1780821039000,-5142.61280672,0.00019178,2]
[424377030,1780821039000,-500.0,0.00019178,2]
[424377031,1780821039000,-500.0,0.00019178,2]
[424377029,1780821039000,-1000.0,0.00019178,2]
[424377033,1780821039000,-1007.63,0.00019178,2]
[424377034,1780821039000,-574.46,0.00019178,2]
[424377024,1780821039000,-500.0,0.00019178,2]
[424377025,1780821039000,-500.0,0.00019178,2]
[424377084,1780821039000,-500.0,0.00019178,2]
[424377028,1780821039000,-500.0,0.00019178,2]
[424377027,1780821039000,-421.19833133,0.00019178,2]
[424377036,1780821039000,-500.0,0.00019178,2]
[424377041,1780821039000,-500.0,0.00019178,2]
[424377038,1780821039000,-500.0,0.00019178,2]
[424377047,1780821039000,-2460.42,0.00019178,2]
[424377035,1780821039000,-500.0,0.00019178,2]
[424377037,1780821039000,-500.0,0.00019178,2]
[424377046,1780821039000,-500.0,0.00019178,2]
[424377039,1780821039000,-500.0,0.00019178,2]
[424377042,1780821039000,-500.0,0.00019178,2]
[424377043,1780821039000,-759.39,0.00019178,2]
[424377040,1780821039000,-1077.91,0.00019178,2]
[424377045,1780821039000,-500.0,0.00019178,2]
[424377044,1780821039000,-500.0,0.00019178,2]
[424377059,1780821039000,-500.0,0.00019178,2]
[424377049,1780821039000,-1264.23828011,0.00019178,2]
[424377048,1780821039000,-577.09,0.00019178,2]
[424377050,1780821039000,-500.0,0.00019178,2]
[424377081,1780821039000,-2338.5,0.00019178,2]
[424377083,1780821039000,-500.0,0.00019178,2]
[424377087,1780821039000,-500.0,0.00019178,2]
[424377121,1780821039000,-5029.7,0.00019178,2]
[424377125,1780821039000,-835.32,0.00019178,2]
[424377124,1780821039000,-755.91,0.00019178,2]
[424377123,1780821039000,-500.0,0.00019178,2]
[424377122,1780821039000,-669.4,0.00019178,2]
[424377130,1780821039000,-500.0,0.00019178,2]
[424377131,1780821039000,-500.0,0.00019178,2]
[424377127,1780821039000,-493.30207418,0.00019178,2]
[424377129,1780821039000,-886.78,0.00019178,2]
[424377133,1780821039000,-946.55,0.00019178,2]
[424377135,1780821039000,-424.46277662,0.00019178,2]
[424377126,1780821039000,-500.0,0.00019178,2]
[424377132,1780821039000,-865.71,0.00019178,2]
[424377107,1780821039000,-500.0,0.00019178,2]
[424377128,1780821039000,-500.0,0.00019178,2]
[424377147,1780821039000,-970.69,0.00019178,2]
[424377136,1780821039000,-500.0,0.00019178,2]
[424377140,1780821039000,-500.0,0.00019178,2]
[424377139,1780821039000,-1000.0,0.00019178,2]
[424377151,1780821039000,-500.0,0.00019178,2]
[424377149,1780821039000,-1489.27,0.00019178,2]
[424377138,1780821039000,-1441.93,0.00019178,2]
[424377144,1780821039000,-545.6,0.00019178,2]
[424377145,1780821039000,-235.40905298,0.00019178,2]
[424377143,1780821039000,-864.94,0.00019178,2]
[424377142,1780821039000,-500.0,0.00019178,2]
[424377085,1780821039000,-500.0,0.00019178,2]
[424377152,1780821039000,-500.0,0.00019178,2]
[424377137,1780821039000,-500.0,0.00019178,2]
[424377114,1780821039000,-603.55,0.00019178,2]
[424377141,1780821039000,-388.61781652,0.00019178,2]
[424377108,1780821039000,-500.0,0.00019178,2]
[424377088,1780821039000,-500.0,0.00019178,2]
[424377086,1780821039000,-355.36740739,0.00019178,2]
[424377091,1780821039000,-500.0,0.00019178,2]
[424377089,1780821039000,-500.0,0.00019178,2]
[424377090,1780821039000,-2234.83,0.00019178,2]
[424377092,1780821039000,-500.0,0.00019178,2]
[424377104,1780821039000,-3597.23,0.00019178,2]
[424377094,1780821039000,-500.0,0.00019178,2]
[424377120,1780821039000,-500.0,0.00019178,2]
[424377100,1780821039000,-500.0,0.00019178,2]
[424377098,1780821039000,-500.0,0.00019178,2]
[424377106,1780821039000,-500.0,0.00019178,2]
[424377101,1780821039000,-500.0,0.00019178,2]
[424377105,1780821039000,-500.0,0.00019178,2]
[424377093,1780821039000,-500.0,0.00019178,2]
[424377095,1780821039000,-2689.76,0.00019178,2]
[424377115,1780821039000,-500.0,0.00019178,2]
[424377099,1780821039000,-500.0,0.00019178,2]
[424377110,1780821039000,-500.0,0.00019178,2]
[424377116,1780821039000,-500.0,0.00019178,2]
[424377113,1780821039000,-500.0,0.00019178,2]
[424377119,1780821039000,-500.0,0.00019178,2]
[424377117,1780821039000,-500.0,0.00019178,2]
[424377096,1780821039000,-500.0,0.00019178,2]
[424377109,1780821039000,-500.0,0.00019178,2]
[424377118,1780821039000,-500.0,0.00019178,2]
[424377097,1780821039000,-500.0,0.00019178,2]
[424377102,1780821039000,-500.0,0.00019178,2]
[424377112,1780821039000,-500.0,0.00019178,2]
[424377198,1780821040000,-333.711861,0.00019178,2]
[424377190,1780821040000,-333.711854,0.00019178,2]
[424377188,1780821040000,-500.0,0.00019178,2]
[424377191,1780821040000,-333.711854,0.00019178,2]
[424377187,1780821040000,-333.711854,0.00019178,2]
[424377185,1780821040000,-517.99,0.00019178,2]
[424377200,1780821040000,-1721.78,0.00019178,2]
[424377189,1780821040000,-333.711854,0.00019178,2]
[424377197,1780821040000,-333.711854,0.00019178,2]
[424377186,1780821040000,-333.711854,0.00019178,2]
[424377199,1780821040000,-983.88,0.00019178,2]
[424377196,1780821040000,-333.711854,0.00019178,2]
[424377206,1780821040000,-500.0,0.00019178,2]
[424377194,1780821040000,-333.711854,0.00019178,2]
[424377195,1780821040000,-3109.98,0.00019178,2]
[424377202,1780821040000,-738.59,0.00019178,2]
[424377212,1780821040000,-500.0,0.00019178,2]
[424377215,1780821040000,-5903.34,0.00019178,2]
[424377213,1780821040000,-648.24,0.00019178,2]
[424377214,1780821040000,-410.7927332,0.00019178,2]
[424377201,1780821040000,-500.0,0.00019178,2]
[424377203,1780821040000,-500.0,0.00019178,2]
[424377204,1780821040000,-500.0,0.00019178,2]
[424377205,1780821040000,-1048.13,0.00019178,2]
[424377207,1780821040000,-741.21,0.00019178,2]
[424377175,1780821040000,-826.42,0.00019178,2]
[424377208,1780821040000,-851.65,0.00019178,2]
[424377193,1780821040000,-333.711854,0.00019178,2]
[424377173,1780821040000,-2745.88,0.00019178,2]
[424377170,1780821040000,-525.58,0.00019178,2]
[424377177,1780821040000,-735.34,0.00019178,2]
[424377209,1780821040000,-500.0,0.00019178,2]
[424377155,1780821040000,-500.0,0.00019178,2]
[424377156,1780821040000,-500.0,0.00019178,2]
[424377154,1780821040000,-1484.73,0.00019178,2]
[424377159,1780821040000,-1510.32,0.00019178,2]
[424377158,1780821040000,-500.0,0.00019178,2]
[424377157,1780821040000,-1307.95,0.00019178,2]
[424377160,1780821040000,-500.0,0.00019178,2]
[424377153,1780821040000,-500.0,0.00019178,2]
[424377163,1780821040000,-2707.45,0.00019178,2]
[424377165,1780821040000,-1712.39,0.00019178,2]
[424377164,1780821040000,-500.0,0.00019178,2]
[424377161,1780821040000,-1195.31,0.00019178,2]
[424377162,1780821040000,-500.0,0.00019178,2]
[424377166,1780821040000,-500.0,0.00019178,2]
[424377167,1780821040000,-576.7,0.00019178,2]
[424377172,1780821040000,-500.0,0.00019178,2]
[424377169,1780821040000,-500.0,0.00019178,2]
[424377168,1780821040000,-500.0,0.00019178,2]
[424377171,1780821040000,-500.0,0.00019178,2]
[424377179,1780821040000,-836.47,0.00019178,2]
[424377183,1780821040000,-333.711854,0.00019178,2]
[424377178,1780821040000,-500.0,0.00019178,2]
[424377181,1780821040000,-589.15,0.00019178,2]
[424377174,1780821040000,-1605.27,0.00019178,2]
[424377182,1780821040000,-500.0,0.00019178,2]
[424377184,1780821040000,-333.711854,0.00019178,2]
[424377176,1780821040000,-500.0,0.00019178,2]
[424377210,1780821040000,-905.61,0.00019178,2]
[424377180,1780821040000,-500.0,0.00019178,2]
[424377218,1780821040000,-350.95498858,0.00019178,2]
[424377254,1780821040000,-500.0,0.00019178,2]
[424377252,1780821040000,-1663.89,0.00019178,2]
[424377255,1780821040000,-500.0,0.00019178,2]
[424377248,1780821040000,-500.0,0.00019178,2]
[424377259,1780821040000,-1407.28,0.00019178,2]
[424377251,1780821040000,-1066.23,0.00019178,2]
[424377261,1780821040000,-500.0,0.00019178,2]
[424377265,1780821040000,-10696.2,0.00019178,2]
[424377263,1780821040000,-500.0,0.00019178,2]
[424377262,1780821040000,-500.0,0.00019178,2]
[424377264,1780821040000,-500.0,0.00019178,2]
[424377266,1780821040000,-500.0,0.00019178,2]
[424377268,1780821040000,-4642.18,0.00019178,2]
[424377269,1780821040000,-500.0,0.00019178,2]
[424377271,1780821040000,-500.0,0.00019178,2]
[424377267,1780821040000,-500.0,0.00019178,2]
[424377270,1780821040000,-500.0,0.00019178,2]
[424377273,1780821040000,-500.0,0.00019178,2]
[424377276,1780821040000,-7961.45,0.00019178,2]
[424377280,1780821040000,-500.0,0.00019178,2]
[424377281,1780821040000,-128.30718059,0.00019178,2]
[424377278,1780821040000,-604.08,0.00019178,2]
[424377275,1780821040000,-500.0,0.00019178,2]
[424377274,1780821040000,-500.0,0.00019178,2]
[424377279,1780821040000,-500.0,0.00019178,2]
[424377277,1780821040000,-500.0,0.00019178,2]
[424377217,1780821040000,-500.0,0.00019178,2]
[424377256,1780821040000,-500.0,0.00019178,2]
[424377258,1780821040000,-512.44,0.00019178,2]
[424377272,1780821040000,-309.25260847,0.00019178,2]
[424377257,1780821040000,-157.06163939,0.00019178,2]
[424377228,1780821040000,-998.88,0.00019178,2]
[424377232,1780821040000,-906.53,0.00019178,2]
[424377253,1780821040000,-699.26,0.00019178,2]
[424377226,1780821040000,-2425.48,0.00019178,2]
[424377219,1780821040000,-500.0,0.00019178,2]
[424377221,1780821040000,-500.0,0.00019178,2]
[424377231,1780821040000,-500.0,0.00019178,2]
[424377216,1780821040000,-988.57,0.00019178,2]
[424377230,1780821040000,-847.41,0.00019178,2]
[424377223,1780821040000,-500.0,0.00019178,2]
[424377229,1780821040000,-969.57,0.00019178,2]
[424377234,1780821040000,-300.0,0.00019178,2]
[424377246,1780821040000,-500.0,0.00019178,2]
[424377244,1780821040000,-221.59958592,0.00019178,2]
[424377224,1780821040000,-1282.63,0.00019178,2]
[424377239,1780821040000,-6182.3,0.00019178,2]
[424377233,1780821040000,-500.0,0.00019178,2]
[424377237,1780821040000,-500.0,0.00019178,2]
[424377235,1780821040000,-500.0,0.00019178,2]
[424377245,1780821040000,-5764.26,0.00019178,2]
[424377236,1780821040000,-2644.18,0.00019178,2]
[424377238,1780821040000,-500.0,0.00019178,2]
[424377240,1780821040000,-3107.8,0.00019178,2]
[424377243,1780821040000,-500.0,0.00019178,2]
[424377242,1780821040000,-500.0,0.00019178,2]
[424377241,1780821040000,-1387.29,0.00019178,2]
[424377247,1780821040000,-500.0,0.00019178,2]
[424377249,1780821040000,-698.49,0.00019178,2]
[424377260,1780821040000,-644.41,0.00019178,2]
[424377293,1780821041000,-500.0,0.00019178,2]
[424377294,1780821041000,-500.0,0.00019178,2]
[424377295,1780821041000,-1083.26512559,0.00019178,2]
[424377292,1780821041000,-691.70281941,0.00019178,2]
[424377333,1780821048000,-2225.032055,0.00018986,2]
[424377981,1780821948000,-500.0,0.00016527,2]
[424377991,1780821948000,-160.71526984,0.00016527,2]
[424377988,1780821948000,-500.0,0.00016527,2]
[424377984,1780821948000,-500.0,0.00016527,2]
[424377983,1780821948000,-500.0,0.00016527,2]
[424377985,1780821948000,-500.0,0.00016527,2]
[424377986,1780821948000,-500.0,0.00016527,2]
[424377982,1780821948000,-500.0,0.00016527,2]
[424377976,1780821948000,-500.0,0.00016527,2]
[424377970,1780821948000,-2773.8564183,0.00016225,2]
[424377977,1780821948000,-500.0,0.00016527,2]
[424377973,1780821948000,-500.0,0.00016527,2]
[424377979,1780821948000,-500.0,0.00016527,2]
[424377974,1780821948000,-500.0,0.00016527,2]
[424377978,1780821948000,-500.0,0.00016527,2]
[424377975,1780821948000,-500.0,0.00016527,2]
[424377972,1780821948000,-500.0,0.00016527,2]
[424377971,1780821948000,-551.21027201,0.00016527,2]
[424377987,1780821948000,-500.0,0.00016527,2]
[424377980,1780821948000,-480.42492488,0.00016527,2]
[424377989,1780821948000,-500.0,0.00016527,2]
[424377999,1780821948000,-500.0,0.00016527,2]
[424377994,1780821948000,-500.0,0.00016527,2]
[424378012,1780821948000,-500.0,0.00016527,2]
[424378007,1780821948000,-500.0,0.00016527,2]
[424378006,1780821948000,-500.0,0.00016527,2]
[424378010,1780821948000,-500.0,0.00016527,2]
[424378008,1780821948000,-500.0,0.00016527,2]
[424378005,1780821948000,-500.0,0.00016527,2]
[424378004,1780821948000,-500.0,0.00016527,2]
[424378003,1780821948000,-500.0,0.00016527,2]
[424378001,1780821948000,-500.0,0.00016527,2]
[424378009,1780821948000,-500.0,0.00016527,2]
[424378011,1780821948000,-500.0,0.00016527,2]
[424378002,1780821948000,-500.0,0.00016527,2]
[424377993,1780821948000,-500.0,0.00016527,2]
[424377995,1780821948000,-500.0,0.00016527,2]
[424377992,1780821948000,-576.21239551,0.00016527,2]
[424377990,1780821948000,-500.0,0.00016527,2]
[424377997,1780821948000,-500.0,0.00016527,2]
[424377998,1780821948000,-500.0,0.00016527,2]
[424378000,1780821948000,-500.0,0.00016527,2]
[424377996,1780821948000,-500.0,0.00016527,2]
[424378033,1780821949000,-6458.82407136,0.00016694,2]
[424378017,1780821949000,-6458.82407136,0.00016694,2]
[424378013,1780821949000,-500.0,0.00016527,2]
[424378020,1780821949000,-6458.82407136,0.00016694,2]
[424378014,1780821949000,-5000.0,0.00016528,2]
[424378016,1780821949000,-500.0,0.00016694,2]
[424378015,1780821949000,-182.70571913,0.00016594,2]
[424378018,1780821949000,-342.90194299,0.00016694,2]
[424378021,1780821949000,-6458.82407136,0.00016694,2]
[424378023,1780821949000,-6458.82407136,0.00016694,2]
[424378019,1780821949000,-6458.82407136,0.00016694,2]
[424378028,1780821949000,-6458.82407136,0.00016694,2]
[424378035,1780821949000,-6458.82407136,0.00016694,2]
[424378032,1780821949000,-6458.82407136,0.00016694,2]
[424378026,1780821949000,-6458.82407136,0.00016694,2]
[424378037,1780821949000,-5228.45111246,0.00016694,2]
[424378036,1780821949000,-6458.82407136,0.00016694,2]
[424378024,1780821949000,-6458.82407136,0.00016694,2]
[424378030,1780821949000,-6458.82407136,0.00016694,2]
[424378027,1780821949000,-6458.82407136,0.00016694,2]
[424378025,1780821949000,-6458.82407136,0.00016694,2]
[424378031,1780821949000,-6458.82407136,0.00016694,2]
[424378022,1780821949000,-6458.82407136,0.00016694,2]
[424378034,1780821949000,-6458.82407136,0.00016694,2]
[424378029,1780821949000,-6458.82407136,0.00016694,2]
[424378038,1780822028000,-183.85005729,0.00016198,2]
[424378050,1780822033000,-206.55952266,0.00018462,2]
[424378057,1780822033000,-186.0,0.00018796,2]
[424378056,1780822033000,-1842.845,0.00018796,2]
[424378055,1780822033000,-151.0,0.000187,2]
[424378058,1780822033000,-209.338,0.00018811,2]
[424378054,1780822033000,-170.0,0.00018696,2]
[424378053,1780822033000,-720.94,0.0001863,2]
[424378052,1780822033000,-209.10338945,0.00018598,2]
[424378051,1780822033000,-152.0,0.00018518,7]
[424378043,1780822033000,-209.10338948,0.00017456,2]
[424378047,1780822033000,-182.70571906,0.00018243,2]
[424378048,1780822033000,-173.84908404,0.00018462,2]
[424378046,1780822033000,-209.10338945,0.00018217,2]
[424378045,1780822033000,-209.10338945,0.00017837,2]
[424378044,1780822033000,-1000.0,0.00017835,2]
[424378042,1780822033000,-182.70571906,0.00017418,2]
[424378040,1780822033000,-3555.52065122,0.00016362,2]
[424378041,1780822033000,-306.05955432,0.00016527,2]
[424378039,1780822033000,-4816.14994271,0.00016198,2]
[424378049,1780822033000,-160.45465886,0.00018462,2]
[424378059,1780822033000,-151.0,0.000189,2]
[424378068,1780822033000,-500.0,0.00019178,2]
[424378062,1780822033000,-182.70571906,0.00019067,2]
[424378078,1780822033000,-500.0,0.00019178,2]
[424378082,1780822033000,-784.51,0.00019178,2]
[424378079,1780822033000,-500.0,0.00019178,2]
[424378081,1780822033000,-500.0,0.00019178,2]
[424378080,1780822033000,-500.0,0.00019178,2]
[424378075,1780822033000,-500.0,0.00019178,2]
[424378074,1780822033000,-1818.77,0.00019178,2]
[424378077,1780822033000,-500.0,0.00019178,2]
[424378073,1780822033000,-573.41,0.00019178,2]
[424378076,1780822033000,-500.0,0.00019178,2]
[424378063,1780822033000,-151.0,0.00019078,2]
[424378070,1780822033000,-500.0,0.00019178,2]
[424378071,1780822033000,-526.19,0.00019178,2]
[424378069,1780822033000,-500.0,0.00019178,2]
[424378064,1780822033000,-595.57,0.00019078,2]
[424378067,1780822033000,-2816.0814626,0.00019167,2]
[424378066,1780822033000,-400.19651998,0.00019167,2]
[424378065,1780822033000,-151.0,0.00019166,2]
[424378061,1780822033000,-209.10338945,0.00018978,2]
[424378060,1780822033000,-720.94,0.00018904,2]
[424378072,1780822033000,-500.0,0.00019178,2]
[424378097,1780822034000,-500.0,0.00019178,2]
[424378099,1780822034000,-1323.36,0.00019178,2]
[424378103,1780822034000,-952.76,0.00019178,2]
[424378102,1780822034000,-500.0,0.00019178,2]
[424378104,1780822034000,-500.0,0.00019178,2]
[424378101,1780822034000,-500.0,0.00019178,2]
[424378105,1780822034000,-788.34,0.00019178,2]
[424378098,1780822034000,-500.0,0.00019178,2]
[424378109,1780822034000,-1000.0,0.00019178,2]
[424378100,1780822034000,-500.0,0.00019178,2]
[424378096,1780822034000,-965.64,0.00019178,2]
[424378091,1780822034000,-500.0,0.00019178,2]
[424378094,1780822034000,-548.92,0.00019178,2]
[424378092,1780822034000,-500.0,0.00019178,2]
[424378093,1780822034000,-500.0,0.00019178,2]
[424378090,1780822034000,-500.0,0.00019178,2]
[424378087,1780822034000,-500.0,0.00019178,2]
[424378086,1780822034000,-872.65,0.00019178,2]
[424378088,1780822034000,-500.0,0.00019178,2]
[424378089,1780822034000,-393.44799205,0.00019178,2]
[424378106,1780822034000,-500.0,0.00019178,2]
[424378085,1780822034000,-500.0,0.00019178,2]
[424378083,1780822034000,-500.0,0.00019178,2]
[424378095,1780822034000,-500.0,0.00019178,2]
[424378107,1780822034000,-500.0,0.00019178,2]
[424378084,1780822034000,-1068.92,0.00019178,2]
[424378111,1780822034000,-500.0,0.00019178,2]
[424378108,1780822034000,-500.0,0.00019178,2]
[424378135,1780822034000,-500.0,0.00019178,2]
[424378134,1780822034000,-1385.75,0.00019178,2]
[424378133,1780822034000,-848.68,0.00019178,2]
[424378132,1780822034000,-789.84,0.00019178,2]
[424378130,1780822034000,-500.0,0.00019178,2]
[424378129,1780822034000,-500.0,0.00019178,2]
[424378131,1780822034000,-500.0,0.00019178,2]
[424378128,1780822034000,-824.82,0.00019178,2]
[424378127,1780822034000,-553.05,0.00019178,2]
[424378125,1780822034000,-500.0,0.00019178,2]
[424378121,1780822034000,-601.18,0.00019178,2]
[424378126,1780822034000,-500.0,0.00019178,2]
[424378124,1780822034000,-500.0,0.00019178,2]
[424378113,1780822034000,-500.0,0.00019178,2]
[424378123,1780822034000,-500.0,0.00019178,2]
[424378112,1780822034000,-500.0,0.00019178,2]
[424378114,1780822034000,-500.0,0.00019178,2]
[424378116,1780822034000,-500.0,0.00019178,2]
[424378115,1780822034000,-2357.9,0.00019178,2]
[424378110,1780822034000,-500.0,0.00019178,2]
[424378119,1780822034000,-500.0,0.00019178,2]
[424378118,1780822034000,-550.53,0.00019178,2]
[424378120,1780822034000,-1033.0,0.00019178,2]
[424378122,1780822034000,-500.0,0.00019178,2]
[424378117,1780822034000,-458.93432529,0.00019178,2]
[424378150,1780822035000,-500.0,0.00019178,2]
[424378160,1780822035000,-500.0,0.00019178,2]
[424378156,1780822035000,-500.0,0.00019178,2]
[424378154,1780822035000,-500.0,0.00019178,2]
[424378157,1780822035000,-500.0,0.00019178,2]
[424378158,1780822035000,-647.81863674,0.00019178,2]
[424378155,1780822035000,-500.0,0.00019178,2]
[424378151,1780822035000,-500.0,0.00019178,2]
[424378153,1780822035000,-772.97,0.00019178,2]
[424378152,1780822035000,-500.0,0.00019178,2]
[424378148,1780822035000,-500.0,0.00019178,2]
[424378136,1780822035000,-503.23,0.00019178,2]
[424378145,1780822035000,-500.0,0.00019178,2]
[424378146,1780822035000,-500.0,0.00019178,2]
[424378143,1780822035000,-500.0,0.00019178,2]
[424378147,1780822035000,-2241.06,0.00019178,2]
[424378144,1780822035000,-2141.71,0.00019178,2]
[424378142,1780822035000,-500.0,0.00019178,2]
[424378140,1780822035000,-500.0,0.00019178,2]
[424378141,1780822035000,-500.0,0.00019178,2]
[424378138,1780822035000,-684.83,0.00019178,2]
[424378139,1780822035000,-500.0,0.00019178,2]
[424378137,1780822035000,-500.0,0.00019178,2]
[424378163,1780822035000,-500.0,0.00019178,2]
[424378149,1780822035000,-500.0,0.00019178,2]
[424378162,1780822035000,-500.0,0.00019178,2]
[424378167,1780822035000,-500.0,0.00019178,2]
[424378164,1780822035000,-500.0,0.00019178,2]
[424378188,1780822035000,-785.85,0.00019178,2]
[424378186,1780822035000,-849.83,0.00019178,2]
[424378187,1780822035000,-1427.22,0.00019178,2]
[424378185,1780822035000,-636.77595435,0.00019178,2]
[424378159,1780822035000,-500.0,0.00019178,2]
[424378183,1780822035000,-500.0,0.00019178,2]
[424378181,1780822035000,-800.51,0.00019178,2]
[424378182,1780822035000,-224.86914852,0.00019178,2]
[424378175,1780822035000,-508.69345333,0.00019178,2]
[424378178,1780822035000,-907.11,0.00019178,2]
[424378179,1780822035000,-500.0,0.00019178,2]
[424378180,1780822035000,-500.0,0.00019178,2]
[424378184,1780822035000,-500.0,0.00019178,2]
[424378176,1780822035000,-500.0,0.00019178,2]
[424378177,1780822035000,-500.0,0.00019178,2]
[424378161,1780822035000,-500.0,0.00019178,2]
[424378165,1780822035000,-1329.48,0.00019178,2]
[424378169,1780822035000,-1021.8,0.00019178,2]
[424378168,1780822035000,-371.55053622,0.00019178,2]
[424378166,1780822035000,-500.0,0.00019178,2]
[424378170,1780822035000,-500.0,0.00019178,2]
[424378172,1780822035000,-500.0,0.00019178,2]
[424378174,1780822035000,-500.0,0.00019178,2]
[424378173,1780822035000,-500.0,0.00019178,2]
[424378171,1780822035000,-578.4,0.00019178,2]
[424378198,1780822036000,-500.0,0.00019178,2]